Cogmind - Beta 11 @@@ ROGUE MODE // 2022.04.05 @ 23:01:23 Player: Rainynight Result: Self-destructed Performance ------------- Evolutions (1) 500 Regions Visited (3) 600 Robots Destroyed (0) 0 Value Destroyed (0) 0 Prototype IDs (0) 0 Alien Tech Used (0) 0 Bonus (200) 200 TOTAL SCORE: 1300 Bonus ------- Pacifist 200 Cogmind --------- Core Integrity 256/400 Matter 225/300 Energy 100/100 System Corruption 0% Temperature Cool (21) Movement Core (100) Ox1 Location -9/Storage Parts ------- > --- POWER (1) -------- (None) > --- PROPULSION (4) --- (None) > --- UTILITY (2) ------ Small Storage Unit > --- WEAPON (2) ------- (None) > --- INVENTORY (8) ---- Light Treads Flight Unit Mini Grenade Launcher Peak State ------------ > --- POWER ------------ Ion Engine > --- PROPULSION ------- Aluminum Leg Aluminum Leg > --- UTILITY ---------- Small Storage Unit > --- WEAPON ----------- Medium Laser Light Assault Rifle > --- INVENTORY -------- Ion Engine Light Treads Light Treads Wheel Wheel Small Laser [Rating: 6] Favorites ----------- Power Ion Engine Engine Ion Engine Propulsion Flight Unit Treads Light Treads Leg Aluminum Leg Hover Unit Hover Unit Flight Unit Flight Unit Utility Small Storage Unit Storage Small Storage Unit Weapon Light Assault Rifle Energy Gun Medium Laser Ballistic Gun Light Assault Rifle Build | -11 -10 -9 -9 ------- Run | Scr Mat Mat Sto Slots Evolved 2 | . . 2 . Power . | . . . . Propulsion 2 | . . 2 . Utility . | . . . . Weapon . | . . . . Parts Attached 11 | 3 1 5 2 Power 1 | . . 1 . Engine 1 | . . 1 . Core . | . . . . Reactor . | . . . . Propulsion 9 | 2 1 4 2 Treads 2 | 2 . . . Leg . | . . . . Wheel . | . . . . Hover 1 | . 1 . . Flight 6 | . . 4 2 Utility . | . . . . Device . | . . . . Storage . | . . . . Processor . | . . . . Hackware . | . . . . Protection . | . . . . Artifact . | . . . . Weapon 1 | 1 . . . Energy Gun . | . . . . Energy Cannon . | . . . . Ballistic Gun 1 | 1 . . . Ballistic Cannon . | . . . . Launcher . | . . . . Special Weapon . | . . . . Impact Weapon . | . . . . Slashing Weapon . | . . . . Piercing Weapon . | . . . . Special Melee Weapon . | . . . . Unidentified Prototypes . | . . . . Parts Lost 7 | . 1 . 6 Power 1 | . . . 1 Propulsion 6 | . 1 . 5 Utility . | . . . . Weapon . | . . . . Highest Loss Streak 6 | . 1 . 6 To Critical Strikes . | . . . . Average Slot Usage (%) 59 | . 58 66 58 Engine 7 | . 5 11 9 Treads 10 | . 18 . . Hover 4 | . 8 . . Flight 17 | . . 44 38 Storage 12 | . 14 11 11 Energy Gun 3 | . 5 . . Ballistic Gun 3 | . 5 . . Naked Turns . | . . . . Heaviest Build 13 | 13 13 10 10 Greatest Support 40 | 40 40 16 16 Greatest Overweight (x) 1 | . 1 . 1 Average Overweight (x) . | . . . . Largest Inventory Capacity 8 | 8 8 8 8 Average Capacity 8 | 8 8 8 8 Most Carried 8 | 6 8 8 4 Average Carried 5 | 6 6 3 3 Final Capacity 8 | 8 8 8 8 Final Carried 7 | 6 7 4 3 Class Distribution -------------------- 58% | Mutant 42% | Sprinter Dominant Class ---------------- Mutant | -10/Materials Sprinter | -9/Materials Sprinter | -9/Storage Resources | -11 -10 -9 -9 ----------- Run | Scr Mat Mat Sto Matter Collected 200 | 188 . . 12 Remotely . | . . . . Salvage Created . | . . . . Parts . | . . . . Haulers Intercepted . | . . . . Recyclers Shooed . | . . . . Parts Field Recycled . | . . . . Retrieved Matter . | . . . . Parts Self-Destructed . | . . . . Prevented . | . . . . Kills | -11 -10 -9 -9 ------- Run | Scr Mat Mat Sto Combat Hostiles Destroyed . | . . . . Classes Destroyed . | . . . . Best Kill Streak . | . . . . Combat Bots Only . | . . . . Max Kills in Single Turn . | . . . . Gunslinging . | . . . . Exploded . | . . . . Melee . | . . . . Uniques/NPCs Destroyed . | . . . . Combat | -11 -10 -9 -9 -------- Run | Scr Mat Mat Sto Damage Taken 617 | . 231 13 373 Core 224 | . 80 . 144 Absorbed by Shields . | . . . . Core Remaining (%) 84 | 100 68 . . Volleys Fired . | . . . . Largest . | . . . . Hottest . | . . . . Shots Fired . | . . . . Gun . | . . . . Cannon . | . . . . Launcher . | . . . . Special . | . . . . Kinetic . | . . . . Thermal . | . . . . Explosive . | . . . . Electromagnetic . | . . . . Robot Hit Streak . | . . . . Robot Miss Streak . | . . . . Penetration Max . | . . . . Secondary Targets . | . . . . Shots Hit Robots . | . . . . Core Hits . | . . . . Critical Kills . | . . . . Critical Parts Destroyed . | . . . . Critical Strikes . | . . . . Melee Attacks . | . . . . Impact . | . . . . Slashing . | . . . . Piercing . | . . . . Sneak Attacks . | . . . . Combat Hostiles . | . . . . Follow-up Attacks . | . . . . Damage Inflicted . | . . . . Guns . | . . . . Cannons . | . . . . Explosions . | . . . . Melee . | . . . . Ramming . | . . . . Kinetic . | . . . . Thermal . | . . . . Explosive . | . . . . Electromagnetic . | . . . . Impact . | . . . . Slashing . | . . . . Piercing . | . . . . Highest Corruption . | . . . . Average Corruption . | . . . . Corruption Purged . | . . . . Corruption Blocked . | . . . . Overload Shots . | . . . . Overflow Damage . | . . . . Projectiles . | . . . . Explosions . | . . . . Melee . | . . . . Knockbacks . | . . . . Impact . | . . . . Kinetic . | . . . . Secondary . | . . . . Self-Inflicted Damage . | . . . . Shots . | . . . . Rammed . | . . . . Targets Rammed . | . . . . Kicked . | . . . . Crushed . | . . . . Highest Temperature 12 | . . . 12 Average Temperature 5 | . . . 5 Received Heat Transfer 174 | . . 9 165 Siege Activations . | . . . . Robots Corrupted . | . . . . Combat Hostiles . | . . . . Parts Fried . | . . . . Impact Corruptions . | . . . . Robots Melted . | . . . . Combat Hostiles . | . . . . Parts Melted . | . . . . Heat Transferred . | . . . . Parts Sabotaged . | . . . . Parts Stolen . | . . . . Parts Stripped . | . . . . Power Chain Reactions . | . . . . Missiles Intercepted . | . . . . Alert | -11 -10 -9 -9 ------- Run | Scr Mat Mat Sto Peak Influence 21 | . 15 21 20 Initial 8 | . . 1 8 Average 5 | . 2 4 14 Maximum Alert Level . | . . . . Low Security (%) 100 | 100 100 100 100 Level 1 . | . . . . Level 2 . | . . . . Level 3 . | . . . . Level 4 . | . . . . Level 5 . | . . . . High Security . | . . . . Max Security . | . . . . Squads Dispatched 1 | . . . 1 Investigation 1 | . . . 1 Extermination . | . . . . Reinforcement . | . . . . Assault . | . . . . Garrison . | . . . . Intercept . | . . . . Searches Triggered . | . . . . Construction Impeded . | . . . . Haulers Reinforced . | . . . . Active Scanning Responses . | . . . . Cargo Convoy Interrupts . | . . . . Stealth | -11 -10 -9 -9 --------- Run | Scr Mat Mat Sto Distress Signals . | . . . . Communications Jammed . | . . . . Distress Signals . | . . . . Times Spotted 14 | . 4 3 7 Peak Tracking Total 7 | . 4 2 7 Tactical Retreats . | . . . . Traps | -11 -10 -9 -9 ------- Run | Scr Mat Mat Sto Traps Triggered . | . . . . Indirectly . | . . . . Trap Hack Attempts . | . . . . Triggered . | . . . . Disarmed . | . . . . Reprogrammed . | . . . . Reused . | . . . . Traps Extracted . | . . . . Installed . | . . . . Triggered . | . . . . Machines | -11 -10 -9 -9 ---------- Run | Scr Mat Mat Sto Machines Disabled . | . . . . Max in Single Turn . | . . . . Machines Sabotaged . | . . . . Garrisons Compromised . | . . . . Overloaded Fab Kills . | . . . . Hacking | -11 -10 -9 -9 --------- Run | Scr Mat Mat Sto Machines Accessed 4 | . . 2 2 Terminals 4 | . . 2 2 Fabricators . | . . . . Repair Stations . | . . . . Recycling Units . | . . . . Scanalyzers . | . . . . Garrison Access . | . . . . Total Hacks 9 | . . 6 3 Successful 5 | . . 3 2 Failed 4 | . . 3 1 Catastrophic 1 | . . . 1 Database Lockouts . | . . . . Manual 7 | . . 5 2 Terminals 9 | . . 6 3 Fabricators . | . . . . Repair Stations . | . . . . Recycling Units . | . . . . Scanalyzers . | . . . . Garrison Access . | . . . . Terminal Hacks 4 | . . 2 2 Open Door 1 | . . . 1 Unreport Threat 1 | . . 1 . Zone Layout 2 | . . 1 1 Fabricator Hacks . | . . . . Repair Station Hacks . | . . . . Recycling Unit Hacks . | . . . . Scanalyzer . | . . . . Garrison Access Hacks . | . . . . Unauthorized Hacks 1 | . . 1 . Terminals 1 | . . 1 . Assimilate 1 | . . 1 . Fabricators . | . . . . Repair Stations . | . . . . Recycling Units . | . . . . Scanalyzers . | . . . . Garrison Access . | . . . . Data Cores Recovered . | . . . . Used . | . . . . Hacking Detections 3 | . . 2 1 Full Trace Events 1 | . . . 1 Feedback Events . | . . . . Feedback Blocked . | . . . . Robot Schematics Acquired . | . . . . Robots Built . | . . . . Authchips . | . . . . Time . | . . . . Total Robot Build Rating . | . . . . Part Schematics Acquired . | . . . . Parts Built . | . . . . Authchips . | . . . . Time . | . . . . Total Part Build Rating . | . . . . Parts Repaired . | . . . . Time . | . . . . Parts Recycled . | . . . . Recycled Matter . | . . . . Retrieved Matter . | . . . . Retrieved Components . | . . . . Parts Scanalyzed . | . . . . Part Schematics Acquired . | . . . . Parts Damaged . | . . . . Bothacking | -11 -10 -9 -9 ------------ Run | Scr Mat Mat Sto Used RIF Installer . | . . . . Robots Hacked . | . . . . Non-combat . | . . . . Combat . | . . . . Robot Hacks Applied . | . . . . Relay Couplers Released . | . . . . Fabnet Peak Effective % . | . . . . Robots Rewired . | . . . . Allies Hacked . | . . . . Hacks Repelled . | . . . . Allies | -11 -10 -9 -9 -------- Run | Scr Mat Mat Sto Total Allies 1 | . . 1 . Largest Group 1 | . . 1 1 Highest-Rated Group 10 | . . 10 10 Highest-Rated Ally 10 | . . 10 10 Total Orders 1 | . . . 1 ROAM 1 | . . . 1 Ally Attacks . | . . . . Total Damage . | . . . . Kills . | . . . . Allies Corrupted . | . . . . Allies Melted . | . . . . Intel | -11 -10 -9 -9 ------- Run | Scr Mat Mat Sto Robot Analysis Total . | . . . . Derelict Logs Recovered . | . . . . Drone Launches . | . . . . Drone Recoveries . | . . . . Exploration | -11 -10 -9 -9 ------------- Run | Scr Mat Mat Sto Turns Passed 210 | 5 118 33 54 Spaces Moved 318 | 1 102 83 132 Core 2 | . 2 . . Treads 31 | 1 30 . . Legs . | . . . . Wheels . | . . . . Hover 70 | . 70 . . Flight 215 | . . 83 132 Fastest Speed 31 | 160 80 31 31 Average Speed 55 | 160 103 31 32 Slowest Speed 160 | 160 160 31 120 Overloaded Moves . | . . . . Propulsion Burnouts . | . . . . Robots Hopped 6 | . . . 6 Cave-ins Triggered . | . . . . Exploration Rate (%) 17 | 2 29 12 25 Regions Visited 3 Branch Regions 1 Pre-discovered Areas . | . . . . Known Exits Taken . | . . . . Unknown Exits Taken 3 | 1 1 1 . Scrap Searched . | . . . . Spaces Dug . | . . . . Terrain Destroyed . | . . . . Melee . | . . . . Projectile . | . . . . AOE . | . . . . Terrain Rammed . | . . . . Walls Destroyed . | . . . . Machines Disabled . | . . . . Actions | -11 -10 -9 -9 --------- Run | Scr Mat Mat Sto Total 348 | 3 119 90 136 Wait 9 | . . 1 8 Move 305 | . 101 82 122 Hop 4 | . . . 4 Pick Up 7 | . 6 1 . Fast Attach 1 | . 1 . . Attach 6 | . . 5 1 Detach 3 | . 2 1 . Swap 4 | 3 . . 1 Drop 9 | . 9 . . Fire . | . . . . Melee . | . . . . Ram . | . . . . Kick . | . . . . Crush . | . . . . Escape Stasis . | . . . . Rewire . | . . . . Trap . | . . . . Miscellaneous . | . . . . Route ------- -11/Scrapyard -10/Materials -9/Materials -9/Storage History --------- Turn | Location | Event 6 | -11/Scrapyard | Discovered new exit (range 0) 6 | -11/Scrapyard | Entered Materials 100 | -10/Materials | Discovered new exit (range 5) 124 | -10/Materials | Entered another Materials area 124 | -9/Materials | Evolved 2 slots: Propulsion x2 151 | -9/Materials | Discovered new exit (range 8) 157 | -9/Materials | Entered Storage 157 | -9/Storage | Accompanied by 1 ally 211 | -9/Storage | Self-destructed Last Messages --------------- 00158_ Technician 2a reveals location of Alarm Trap. 00160_ Connecting with Terminal... 00160_ Current location identified: Storage 00171_ Technician 2a destroyed. 00172_ Acquired 12 matter. 00175_ Flight Unit destroyed. 00203_ Connecting with Terminal... >>Layout(Zone) Retrieving Zone 6B layout... Downloaded map data. 00203_ ALERT: Suspicious activity at Terminal S011. Dispatching Investigation squad. 00205_ Flight Unit destroyed. 00206_ Ion Engine destroyed. 00207_ Connecting with Door Terminal... >>Open(Door) Sealed Heavy Doors opened. 00209_ Flight Unit destroyed. 00211_ G-34 Mercenary suffers critical hit (Burn). 00211_ G-34 Mercenary destroyed. Map ----- +----------------------------------------------------+ | ????????????????????????????????????????????????? | | ??????????????#####+##?????######## #???????????? | | ??????????????# #?????# #???????????? | | ??????????????# #?????# """"" #???????????? | | ??????????????# #?????# """"" #???????????? | | ??????????????# ####### """"" ###?????????? | | ??????????????# # # """#????????? | | ??????????????# # # """"" R"#????????? | | ??????????????# / + """"" """#????????? | | ??????????????# # # """"" ##??????????? | | ??????????????# # # #???????????? | | ??????????????# ## #############?????????? | | ??????????????# ## #? ??????????? | | ??????????????# ## # // """????????????? | | ??????????????+ ## a# /| """"???????????? | | ??????????????#########r / /| """"???????????? | | ??????????????????????# # """"???????????? | | ??????????????????????# # #?????????? | | ??????????????????????# #? [ #????????? | | ????????????????#######Y ##############????????? | | ????????????????# # #?????##########??????? | | ????????????????# ! # g ####### #??????? | | ??????????? ### # ##! !## """ #??????? | | ????????????? / # Y=##! !## """ #??????? | | ????????????????# #gg%##! !## """ #??????? | | ????????????????# ! /g @##! !## !#??????? | | ????????????????# ] # ### ### """ #??????? | | ????????????????# # # T## """ #??????? | | ????????????????# # + ### """ #??????? | | ????????????????# # ####### #??????? | | ????????????????# # ###########+######????? | | ????????????????# # ^ #????? | | ????????????????####### #????? | | ??????????????????????# #????? | | ??????????????????????##########T###########????? | | ???????????????????????????????###??????????????? | | ????????????????????????????????????????????????? | | ????????????????????????????????????????????????? | | ????????????????????????????????????????????????? | | ????????????????????????????????????????????????? | | ????????????????????????????????????????????????? | | ????????????????????????????????????????????????? | | ????????????????????????????????????????????????? | | ????????????????????????????????????????????????? | | | | | | | | | | | | | +----------------------------------------------------+ Best States ------------- Heat Dissipation 28 Energy Generation 10 Energy Capacity 250 Matter Stores 258 Matter Capacity 300 Sight Range 16 Terrain Scan Density 10 Evasion (%) 63 Recoil Reduction 2 Item Schematics ----------------- None Robot Schematics ------------------ None Fabricated ------------ Nothing Alien Tech Used ----------------- None Achievements -------------- None Challenges ------------ None Game ------ Seed ImpulseSignalWings Manual? 0 Play Time 00:06:43 Cumulative 50.4 hours Start 2022.04.05 @ 22:56:47 End 2022.04.05 @ 23:01:23 Sessions 1 Manual Loads 0 Difficulty Rogue Special Mode None Game No. 52 Rogue 52 Adventurer 0 Explorer 0 Win Type - Total 0 Types 0/0/0/0/0/0/0/0/0 Lore% 42 Gallery% 42 Achievement% 34 Wizard Run 0 Options --------- ASCII 1 Keyboard 1 Movement Numpad Keybinds 0 Fullscreen 1 Font 18/X11 Map View 76x50 Tactical HUD 1 Map Filters NONE Filters NONE Steam 1 RUN: dc9ed160-dc1f-46c7-baf6-0341620261f4